[Event "Late-Titled-Tuesday-Blitz-March-19-2024"]
[Site "Chess.com"]
[Date "2024.03.19"]
[Round "2"]
[White "BardArtem"]
[Black "picturesquecheck"]
[Result "1-0"]
[WhiteElo "2737"]
[BlackElo "2412"]
[TimeControl "180+1"]
[EndTime "14:18:52 PDT"]
[Termination "BardArtem won by checkmate"]

1. e4 {[%clk 0:02:54]} 1... c6 {[%clk 0:02:59]} 2. Nf3 {[%clk 0:02:53.5]} 2...
d5 {[%clk 0:02:59.9]} 3. exd5 {[%clk 0:02:54.3]} 3... cxd5 {[%clk 0:02:59.7]} 4.
Ne5 {[%clk 0:02:54.1]} 4... Nc6 {[%clk 0:03:00.2]} 5. d4 {[%clk 0:02:54]} 5...
Bd7 {[%clk 0:03:00.5]} 6. c3 {[%clk 0:02:51.3]} 6... e6 {[%clk 0:03:00.5]} 7.
Bd3 {[%clk 0:02:44.1]} 7... Bd6 {[%clk 0:03:00.5]} 8. f4 {[%clk 0:02:44.1]} 8...
f6 {[%clk 0:02:54.7]} 9. Qh5+ {[%clk 0:02:35.9]} 9... g6 {[%clk 0:02:39.3]} 10.
Bxg6+ {[%clk 0:02:30.3]} 10... Ke7 {[%clk 0:02:24.7]} 11. Bxh7 {[%clk 0:02:23]}
11... Bxe5 {[%clk 0:01:54.3]} 12. fxe5 {[%clk 0:02:15.9]} 12... Be8 {[%clk
0:01:54.5]} 13. Qh4 {[%clk 0:02:10.7]} 13... Kd7 {[%clk 0:01:45.8]} 14. Qg3
{[%clk 0:01:33.9]} 14... Rxh7 {[%clk 0:01:14.3]} 15. Qxg8 {[%clk 0:01:29.8]}
15... Rf7 {[%clk 0:01:12.4]} 16. O-O {[%clk 0:01:23.8]} 16... Qe7 {[%clk
0:00:37.6]} 17. exf6 {[%clk 0:01:14.1]} 17... Rxf6 {[%clk 0:00:37.8]} 18. Rxf6
{[%clk 0:01:13.4]} 18... Qxf6 {[%clk 0:00:38.7]} 19. Qg5 {[%clk 0:01:07.4]}
19... Qxg5 {[%clk 0:00:38]} 20. Bxg5 {[%clk 0:01:08.3]} 20... Bg6 {[%clk
0:00:38.5]} 21. Nd2 {[%clk 0:01:08.5]} 21... Rg8 {[%clk 0:00:38.3]} 22. Bf4
{[%clk 0:01:07.6]} 22... Ne7 {[%clk 0:00:34.5]} 23. Nf3 {[%clk 0:01:07.3]} 23...
Be4 {[%clk 0:00:32.9]} 24. Ne5+ {[%clk 0:01:07.4]} 24... Kc8 {[%clk 0:00:32.8]}
25. g3 {[%clk 0:01:07.5]} 25... Nf5 {[%clk 0:00:30.8]} 26. Rc1 {[%clk
0:01:07.3]} 26... b5 {[%clk 0:00:29.7]} 27. b3 {[%clk 0:01:07]} 27... a6 {[%clk
0:00:28.2]} 28. Kf2 {[%clk 0:01:07.1]} 28... Kb7 {[%clk 0:00:26.8]} 29. c4
{[%clk 0:01:06.5]} 29... Nxd4 {[%clk 0:00:24.1]} 30. cxd5 {[%clk 0:01:05]} 30...
Bxd5 {[%clk 0:00:20.6]} 31. Nd3 {[%clk 0:01:04.1]} 31... Nf3 {[%clk 0:00:11.6]}
32. Rc7+ {[%clk 0:01:03.1]} 32... Ka8 {[%clk 0:00:11.1]} 33. h4 {[%clk
0:00:55.9]} 33... Nh2 {[%clk 0:00:11.1]} 34. Nb4 {[%clk 0:00:55.1]} 34... Ng4+
{[%clk 0:00:11]} 35. Ke1 {[%clk 0:00:55.4]} 35... Bb7 {[%clk 0:00:10.8]} 36. Nd3
{[%clk 0:00:52.9]} 36... e5 {[%clk 0:00:09.5]} 37. Nxe5 {[%clk 0:00:50.2]} 37...
Re8 {[%clk 0:00:08.9]} 38. Rc5 {[%clk 0:00:50.8]} 38... Nf6 {[%clk 0:00:07.6]}
39. Kd1 {[%clk 0:00:23.8]} 39... Ne4 {[%clk 0:00:07.6]} 40. Rc7 {[%clk 0:00:23]}
40... Rd8+ {[%clk 0:00:08]} 41. Kc1 {[%clk 0:00:23.1]} 41... Rg8 {[%clk
0:00:08.7]} 42. h5 {[%clk 0:00:14.8]} 42... Nxg3 {[%clk 0:00:07.8]} 43. Bxg3
{[%clk 0:00:14.7]} 43... Rxg3 {[%clk 0:00:08.7]} 44. h6 {[%clk 0:00:13.6]} 44...
Rh3 {[%clk 0:00:09]} 45. h7 {[%clk 0:00:09.8]} 45... Ka7 {[%clk 0:00:09.5]} 46.
Ng6 {[%clk 0:00:07]} 46... Kb6 {[%clk 0:00:10]} 47. Rxb7+ {[%clk 0:00:07.3]}
47... Kxb7 {[%clk 0:00:10.3]} 48. h8=Q {[%clk 0:00:08.2]} 48... Rxh8 {[%clk
0:00:10.4]} 49. Nxh8 {[%clk 0:00:09.1]} 49... Kc6 {[%clk 0:00:10.4]} 50. Ng6
{[%clk 0:00:10]} 50... Kc5 {[%clk 0:00:11.3]} 51. Kb2 {[%clk 0:00:10.1]} 51...
a5 {[%clk 0:00:11.9]} 52. Nf4 {[%clk 0:00:10.8]} 52... a4 {[%clk 0:00:12.6]} 53.
bxa4 {[%clk 0:00:11.4]} 53... bxa4 {[%clk 0:00:12.1]} 54. Ka3 {[%clk 0:00:11.9]}
54... Kb5 {[%clk 0:00:12.9]} 55. Ne2 {[%clk 0:00:12.6]} 55... Ka5 {[%clk
0:00:13.2]} 56. Nc3 {[%clk 0:00:13]} 56... Ka6 {[%clk 0:00:13]} 57. Nxa4 {[%clk
0:00:13.9]} 57... Kb5 {[%clk 0:00:13.1]} 58. Nb2 {[%clk 0:00:14.8]} 58... Ka5
{[%clk 0:00:13.9]} 59. Kb3 {[%clk 0:00:15.7]} 59... Kb5 {[%clk 0:00:14.7]} 60.
a4+ {[%clk 0:00:16.6]} 60... Ka5 {[%clk 0:00:15.6]} 61. Ka3 {[%clk 0:00:17]}
61... Kb6 {[%clk 0:00:16.2]} 62. Kb4 {[%clk 0:00:17.9]} 62... Ka6 {[%clk
0:00:17.1]} 63. a5 {[%clk 0:00:18.8]} 63... Kb7 {[%clk 0:00:17.3]} 64. Kb5
{[%clk 0:00:19.7]} 64... Ka7 {[%clk 0:00:18.2]} 65. a6 {[%clk 0:00:20.6]} 65...
Kb8 {[%clk 0:00:18.4]} 66. Kb6 {[%clk 0:00:21.5]} 66... Ka8 {[%clk 0:00:19]} 67.
Na4 {[%clk 0:00:22.4]} 67... Kb8 {[%clk 0:00:19]} 68. Nc3 {[%clk 0:00:23.3]}
68... Ka8 {[%clk 0:00:19.7]} 69. Nb5 {[%clk 0:00:24.2]} 69... Kb8 {[%clk
0:00:20.6]} 70. a7+ {[%clk 0:00:22.6]} 70... Ka8 {[%clk 0:00:21.5]} 71. Nc7#
{[%clk 0:00:22.6]} 1-0

[Event "Late-Titled-Tuesday-Blitz-March-19-2024"]
[Site "Chess.com"]
[Date "2024.03.19"]
[Round "2"]
[White "DrKerfuffle"]
[Black "karinachess1"]
[Result "1/2-1/2"]
[WhiteElo "2863"]
[BlackElo "2619"]
[TimeControl "180+1"]
[EndTime "14:18:53 PDT"]
[Termination "Game drawn - insufficient material"]

1. e4 {[%clk 0:03:00.9]} 1... e5 {[%clk 0:03:00]} 2. Qh5 {[%clk 0:03:00.4]} 2...
Nc6 {[%clk 0:02:58.3]} 3. Bc4 {[%clk 0:03:00]} 3... g6 {[%clk 0:02:57.4]} 4. Qf3
{[%clk 0:02:59.8]} 4... Nf6 {[%clk 0:02:57.9]} 5. Ne2 {[%clk 0:02:59.1]} 5...
Bg7 {[%clk 0:02:56.5]} 6. Nbc3 {[%clk 0:02:58.6]} 6... d6 {[%clk 0:02:51.7]} 7.
h3 {[%clk 0:02:58.2]} 7... Be6 {[%clk 0:02:48.7]} 8. d3 {[%clk 0:02:58.3]} 8...
h6 {[%clk 0:02:42.9]} 9. g4 {[%clk 0:02:57.4]} 9... Qd7 {[%clk 0:02:36.6]} 10.
g5 {[%clk 0:02:52.4]} 10... Nh5 {[%clk 0:02:27.9]} 11. Nd5 {[%clk 0:02:48.6]}
11... O-O-O {[%clk 0:02:24.3]} 12. gxh6 {[%clk 0:02:27.7]} 12... Bxh6 {[%clk
0:02:25.2]} 13. Bxh6 {[%clk 0:02:27.6]} 13... Rxh6 {[%clk 0:02:26.1]} 14. O-O-O
{[%clk 0:02:27.7]} 14... Nd4 {[%clk 0:02:16.2]} 15. Nxd4 {[%clk 0:02:24.8]}
15... exd4 {[%clk 0:02:17.1]} 16. Kb1 {[%clk 0:02:11.5]} 16... c6 {[%clk
0:02:12]} 17. Nf6 {[%clk 0:02:11.2]} 17... Qe7 {[%clk 0:02:12]} 18. Ng4 {[%clk
0:02:05.7]} 18... Rh7 {[%clk 0:02:09.1]} 19. Rhe1 {[%clk 0:01:47.1]} 19... Rdh8
{[%clk 0:02:01.7]} 20. e5 {[%clk 0:01:40.2]} 20... d5 {[%clk 0:01:54.6]} 21. Bb3
{[%clk 0:01:40.2]} 21... Ng7 {[%clk 0:01:53.5]} 22. Qf4 {[%clk 0:01:32.2]} 22...
Rxh3 {[%clk 0:01:35.2]} 23. Qxd4 {[%clk 0:01:20.6]} 23... R8h4 {[%clk
0:01:21.8]} 24. Rg1 {[%clk 0:01:16.8]} 24... Qd7 {[%clk 0:01:07.6]} 25. Qxa7
{[%clk 0:00:50.6]} 25... Rxg4 {[%clk 0:01:02.4]} 26. Qa8+ {[%clk 0:00:44.1]}
26... Kc7 {[%clk 0:01:02.6]} 27. Qa5+ {[%clk 0:00:44.5]} 27... Kb8 {[%clk
0:01:02.8]} 28. Rge1 {[%clk 0:00:38.1]} 28... Nf5 {[%clk 0:00:58.4]} 29. Qc5
{[%clk 0:00:37.3]} 29... Rh8 {[%clk 0:00:56.1]} 30. c3 {[%clk 0:00:35.4]} 30...
d4 {[%clk 0:00:46.5]} 31. c4 {[%clk 0:00:30.8]} 31... Rg2 {[%clk 0:00:40.4]} 32.
Rd2 {[%clk 0:00:30]} 32... Qe7 {[%clk 0:00:36]} 33. Qb6 {[%clk 0:00:29.2]} 33...
Rhh2 {[%clk 0:00:32.8]} 34. Ree2 {[%clk 0:00:25.1]} 34... Ng3 {[%clk 0:00:29.9]}
35. Re1 {[%clk 0:00:19.5]} 35... Rxf2 {[%clk 0:00:30]} 36. Rxf2 {[%clk
0:00:20.2]} 36... Rxf2 {[%clk 0:00:30.9]} 37. Qxd4 {[%clk 0:00:20.3]} 37... Rh2
{[%clk 0:00:25.7]} 38. Qf4 {[%clk 0:00:09.2]} 38... Qh4 {[%clk 0:00:24.9]} 39.
Qe3 {[%clk 0:00:09.8]} 39... Rh1 {[%clk 0:00:23.5]} 40. a4 {[%clk 0:00:08.4]}
40... Nf5 {[%clk 0:00:20.7]} 41. Rxh1 {[%clk 0:00:04.6]} 41... Qxh1+ {[%clk
0:00:21.6]} 42. Qc1 {[%clk 0:00:04.9]} 42... Qxc1+ {[%clk 0:00:21.2]} 43. Kxc1
{[%clk 0:00:05.8]} 43... Nd4 {[%clk 0:00:21.5]} 44. Bd1 {[%clk 0:00:06.2]} 44...
g5 {[%clk 0:00:21.8]} 45. Kd2 {[%clk 0:00:06.7]} 45... c5 {[%clk 0:00:21.1]} 46.
Ke3 {[%clk 0:00:07]} 46... b6 {[%clk 0:00:20.9]} 47. b4 {[%clk 0:00:07.1]} 47...
Nc6 {[%clk 0:00:20.2]} 48. bxc5 {[%clk 0:00:06.3]} 48... bxc5 {[%clk 0:00:21.1]}
49. Bf3 {[%clk 0:00:06]} 49... Nxe5 {[%clk 0:00:20.8]} 50. Bd5 {[%clk
0:00:06.6]} 50... Bxd5 {[%clk 0:00:18.3]} 51. cxd5 {[%clk 0:00:07.5]} 51... f5
{[%clk 0:00:17.5]} 52. a5 {[%clk 0:00:07]} 52... Ka7 {[%clk 0:00:16.9]} 53. d4
{[%clk 0:00:07.9]} 53... cxd4+ {[%clk 0:00:16.3]} 54. Kxd4 {[%clk 0:00:08.4]}
54... Nd7 {[%clk 0:00:17]} 55. d6 {[%clk 0:00:08.4]} 55... Ka6 {[%clk
0:00:16.4]} 56. Kd5 {[%clk 0:00:08.5]} 56... Kxa5 {[%clk 0:00:17]} 57. Ke6
{[%clk 0:00:08.9]} 57... Nb6 {[%clk 0:00:17.4]} 58. Kxf5 {[%clk 0:00:08.8]}
58... Kb5 {[%clk 0:00:13.5]} 59. Kxg5 {[%clk 0:00:09]} 59... Kc6 {[%clk
0:00:14.1]} 60. d7 {[%clk 0:00:09.5]} 60... Kxd7 {[%clk 0:00:14.7]} 1/2-1/2

[Event "Late-Titled-Tuesday-Blitz-March-19-2024"]
[Site "Chess.com"]
[Date "2024.03.19"]
[Round "2"]
[White "mind1mover"]
[Black "xasid81"]
[Result "0-1"]
[WhiteElo "2809"]
[BlackElo "2605"]
[TimeControl "180+1"]
[EndTime "14:18:54 PDT"]
[Termination "xasid81 won by resignation"]

1. e4 {[%clk 0:03:00.9]} 1... d5 {[%clk 0:02:59.1]} 2. exd5 {[%clk 0:03:00.4]}
2... Qxd5 {[%clk 0:03:00]} 3. Nc3 {[%clk 0:03:00.6]} 3... Qa5 {[%clk 0:02:59]}
4. d4 {[%clk 0:03:00.7]} 4... c6 {[%clk 0:02:59.4]} 5. Nf3 {[%clk 0:03:01.3]}
5... Bf5 {[%clk 0:02:57.8]} 6. Bc4 {[%clk 0:03:00.6]} 6... e6 {[%clk 0:02:57.2]}
7. O-O {[%clk 0:03:01.2]} 7... Nf6 {[%clk 0:02:56.2]} 8. Bd2 {[%clk 0:02:56.7]}
8... Qc7 {[%clk 0:02:56]} 9. Ne5 {[%clk 0:02:57.2]} 9... Nbd7 {[%clk 0:02:51.3]}
10. Qe2 {[%clk 0:02:50]} 10... Nxe5 {[%clk 0:02:43.9]} 11. dxe5 {[%clk
0:02:49.5]} 11... Nd7 {[%clk 0:02:43.5]} 12. Bf4 {[%clk 0:02:42]} 12... Be7
{[%clk 0:02:40.9]} 13. Ne4 {[%clk 0:02:26.2]} 13... Bxe4 {[%clk 0:02:27.7]} 14.
Qxe4 {[%clk 0:02:27.1]} 14... Nb6 {[%clk 0:02:23.8]} 15. Bd3 {[%clk 0:02:24.3]}
15... Nd5 {[%clk 0:02:22.8]} 16. Bd2 {[%clk 0:02:21.4]} 16... g6 {[%clk
0:02:20.6]} 17. Bh6 {[%clk 0:02:18.5]} 17... Bf8 {[%clk 0:02:17.5]} 18. Bxf8
{[%clk 0:02:06.3]} 18... Kxf8 {[%clk 0:02:17.5]} 19. c4 {[%clk 0:02:06.1]} 19...
Nb6 {[%clk 0:02:12.2]} 20. Rad1 {[%clk 0:02:00.7]} 20... Kg7 {[%clk 0:02:10.3]}
21. h4 {[%clk 0:01:45.6]} 21... h5 {[%clk 0:01:58.4]} 22. Be2 {[%clk 0:01:17.4]}
22... Rad8 {[%clk 0:01:53.2]} 23. g3 {[%clk 0:01:11.7]} 23... Rxd1 {[%clk
0:01:50.4]} 24. Rxd1 {[%clk 0:01:11.6]} 24... Rd8 {[%clk 0:01:49.5]} 25. Rd4
{[%clk 0:01:06]} 25... Na4 {[%clk 0:01:02.3]} 26. Qf4 {[%clk 0:00:56.7]} 26...
Rxd4 {[%clk 0:01:01.2]} 27. Qxd4 {[%clk 0:00:57.6]} 27... c5 {[%clk 0:00:54.8]}
28. Qf4 {[%clk 0:00:43.6]} 28... Qe7 {[%clk 0:00:41]} 29. Qd2 {[%clk 0:00:34.7]}
29... Qc7 {[%clk 0:00:35.2]} 30. b3 {[%clk 0:00:27.6]} 30... Nb6 {[%clk
0:00:35.2]} 31. Qg5 {[%clk 0:00:27.7]} 31... Nd7 {[%clk 0:00:30.4]} 32. f4
{[%clk 0:00:27.2]} 32... Qa5 {[%clk 0:00:27.7]} 33. Kf2 {[%clk 0:00:20.6]} 33...
Qxa2 {[%clk 0:00:23.8]} 34. Qe7 {[%clk 0:00:18.2]} 34... Nf8 {[%clk 0:00:22.3]}
35. Qxc5 {[%clk 0:00:14.7]} 35... Qxb3 {[%clk 0:00:19.5]} 36. Qxa7 {[%clk
0:00:14.3]} 36... b6 {[%clk 0:00:18.7]} 37. Qe7 {[%clk 0:00:07.5]} 37... Qb2
{[%clk 0:00:15.7]} 38. Qd6 {[%clk 0:00:06.7]} 38... Qb3 {[%clk 0:00:13.7]} 39.
g4 {[%clk 0:00:02.6]} 39... hxg4 {[%clk 0:00:12.8]} 40. Bxg4 {[%clk 0:00:03.5]}
40... Qxc4 {[%clk 0:00:12]} 41. Kg3 {[%clk 0:00:01.4]} 41... Qc3+ {[%clk
0:00:11.2]} 42. Bf3 {[%clk 0:00:02]} 42... Qc5 {[%clk 0:00:11.3]} 43. Qd2 {[%clk
0:00:01.7]} 43... b5 {[%clk 0:00:11.3]} 44. h5 {[%clk 0:00:02.2]} 44... gxh5
{[%clk 0:00:11]} 45. Bxh5 {[%clk 0:00:03.1]} 45... Ng6 {[%clk 0:00:10.8]} 46.
Bxg6 {[%clk 0:00:03.1]} 46... Kxg6 {[%clk 0:00:11.7]} 47. Kf3 {[%clk 0:00:02.9]}
47... Qd5+ {[%clk 0:00:11.3]} 48. Qxd5 {[%clk 0:00:03]} 48... exd5 {[%clk
0:00:12.2]} 49. Kg4 {[%clk 0:00:03.9]} 49... b4 {[%clk 0:00:12.3]} 50. f5+
{[%clk 0:00:04.8]} 50... Kh6 {[%clk 0:00:12.2]} 51. Kf4 {[%clk 0:00:04]} 51...
b3 {[%clk 0:00:12.3]} 52. Ke3 {[%clk 0:00:04.7]} 52... d4+ {[%clk 0:00:10.7]}
53. Kd3 {[%clk 0:00:04.4]} 53... Kg5 {[%clk 0:00:10.9]} 54. e6 {[%clk
0:00:04.1]} 54... fxe6 {[%clk 0:00:11.1]} 55. fxe6 {[%clk 0:00:04.8]} 55... Kf6
{[%clk 0:00:11.4]} 56. Kxd4 {[%clk 0:00:05.4]} 56... b2 {[%clk 0:00:11.5]} 57.
e7 {[%clk 0:00:05.6]} 57... Kxe7 {[%clk 0:00:11.6]} 58. Kc3 {[%clk 0:00:05.6]}
58... b1=Q {[%clk 0:00:12]} 0-1

[Event "Late-Titled-Tuesday-Blitz-March-19-2024"]
[Site "Chess.com"]
[Date "2024.03.19"]
[Round "2"]
[White "Kimkibo"]
[Black "JoakimVonAnd"]
[Result "0-1"]
[WhiteElo "2275"]
[BlackElo "2710"]
[TimeControl "180+1"]
[EndTime "14:18:58 PDT"]
[Termination "JoakimVonAnd won on time"]

1. d4 {[%clk 0:03:00]} 1... d5 {[%clk 0:02:58.9]} 2. Nf3 {[%clk 0:02:58.5]} 2...
Nf6 {[%clk 0:02:56]} 3. Bf4 {[%clk 0:02:58.9]} 3... h6 {[%clk 0:02:47]} 4. e3
{[%clk 0:02:57.9]} 4... e6 {[%clk 0:02:39.5]} 5. Nbd2 {[%clk 0:02:51.9]} 5...
Nh5 {[%clk 0:02:37.4]} 6. Be5 {[%clk 0:02:50.5]} 6... Nc6 {[%clk 0:02:34.7]} 7.
Bd3 {[%clk 0:02:44]} 7... Nxe5 {[%clk 0:02:33.2]} 8. Nxe5 {[%clk 0:02:43.9]}
8... Nf6 {[%clk 0:02:32.7]} 9. f4 {[%clk 0:02:43.8]} 9... Bd6 {[%clk 0:02:26.1]}
10. O-O {[%clk 0:02:42.9]} 10... a6 {[%clk 0:02:26.2]} 11. c3 {[%clk 0:02:39.8]}
11... c5 {[%clk 0:02:26.5]} 12. Bc2 {[%clk 0:02:34]} 12... Qc7 {[%clk
0:02:24.9]} 13. Rf3 {[%clk 0:02:30.4]} 13... b6 {[%clk 0:02:14.5]} 14. Rg3
{[%clk 0:02:27.7]} 14... g5 {[%clk 0:01:59.6]} 15. fxg5 {[%clk 0:02:24.1]} 15...
hxg5 {[%clk 0:01:59.9]} 16. Rxg5 {[%clk 0:02:20.5]} 16... Nd7 {[%clk 0:01:59.4]}
17. Ndf3 {[%clk 0:02:12.9]} 17... Bb7 {[%clk 0:01:55.5]} 18. h3 {[%clk
0:01:50.3]} 18... Nxe5 {[%clk 0:01:43.3]} 19. dxe5 {[%clk 0:01:39.7]} 19... Be7
{[%clk 0:01:43.3]} 20. Rg7 {[%clk 0:01:34.3]} 20... Bf8 {[%clk 0:01:39.2]} 21.
Rg4 {[%clk 0:01:31.8]} 21... O-O-O {[%clk 0:01:39.4]} 22. Qe2 {[%clk 0:01:25.4]}
22... Bh6 {[%clk 0:01:33.3]} 23. Bd3 {[%clk 0:01:14.8]} 23... c4 {[%clk
0:01:15.9]} 24. Bc2 {[%clk 0:01:11.8]} 24... Rdg8 {[%clk 0:01:13.7]} 25. Rxg8+
{[%clk 0:01:07.8]} 25... Rxg8 {[%clk 0:01:14.6]} 26. e4 {[%clk 0:01:07.5]} 26...
Bf4 {[%clk 0:01:00.5]} 27. exd5 {[%clk 0:01:04.3]} 27... Bxd5 {[%clk 0:01:00.5]}
28. Be4 {[%clk 0:01:00.9]} 28... Qc5+ {[%clk 0:00:42.6]} 29. Kh1 {[%clk
0:00:57.7]} 29... Kb8 {[%clk 0:00:30.2]} 30. Bxd5 {[%clk 0:00:53.2]} 30... exd5
{[%clk 0:00:30.3]} 31. e6 {[%clk 0:00:44.3]} 31... Re8 {[%clk 0:00:26.3]} 32.
Nd4 {[%clk 0:00:38.2]} 32... fxe6 {[%clk 0:00:24.3]} 33. Qh5 {[%clk 0:00:21.5]}
33... Re7 {[%clk 0:00:14.1]} 34. Rf1 {[%clk 0:00:18.7]} 34... Bc7 {[%clk
0:00:13.9]} 35. Rf8+ {[%clk 0:00:17.6]} 35... Kb7 {[%clk 0:00:14.6]} 36. Rh8
{[%clk 0:00:09.7]} 36... Qd6 {[%clk 0:00:14.5]} 37. Nf3 {[%clk 0:00:08.4]} 37...
e5 {[%clk 0:00:15.1]} 38. Qf5 {[%clk 0:00:07.5]} 38... Rd7 {[%clk 0:00:06.7]}
39. Qf8 {[%clk 0:00:04.1]} 39... Qxf8 {[%clk 0:00:07]} 40. Rxf8 {[%clk
0:00:04.9]} 40... e4 {[%clk 0:00:07.9]} 41. Nd4 {[%clk 0:00:05.2]} 41... Be5
{[%clk 0:00:08.2]} 42. Re8 {[%clk 0:00:05.1]} 42... Bc7 {[%clk 0:00:07.3]} 43.
g4 {[%clk 0:00:04.6]} 43... Rf7 {[%clk 0:00:07.2]} 44. g5 {[%clk 0:00:04.3]}
44... Rf2 {[%clk 0:00:06.4]} 45. g6 {[%clk 0:00:03.5]} 45... Rf1+ {[%clk
0:00:04]} 46. Kg2 {[%clk 0:00:03.3]} 46... Rf6 {[%clk 0:00:04.3]} 47. Rg8 {[%clk
0:00:01.5]} 47... Be5 {[%clk 0:00:04.2]} 0-1

[Event "Late-Titled-Tuesday-Blitz-March-19-2024"]
[Site "Chess.com"]
[Date "2024.03.19"]
[Round "2"]
[White "Der_Balak_3Halak"]
[Black "bubeliang"]
[Result "0-1"]
[WhiteElo "2413"]
[BlackElo "2793"]
[TimeControl "180+1"]
[EndTime "14:19:00 PDT"]
[Termination "bubeliang won by resignation"]

1. e4 {[%clk 0:03:00]} 1... c6 {[%clk 0:02:56.5]} 2. d4 {[%clk 0:02:58.9]} 2...
d5 {[%clk 0:02:57.4]} 3. exd5 {[%clk 0:02:59.8]} 3... cxd5 {[%clk 0:02:58.3]} 4.
Nf3 {[%clk 0:03:00.3]} 4... Nc6 {[%clk 0:02:57.1]} 5. Bb5 {[%clk 0:03:00.7]}
5... e6 {[%clk 0:02:55.9]} 6. O-O {[%clk 0:03:01.3]} 6... Bd6 {[%clk 0:02:55.7]}
7. c4 {[%clk 0:02:58.5]} 7... Nf6 {[%clk 0:02:53.4]} 8. Bg5 {[%clk 0:02:56.2]}
8... O-O {[%clk 0:02:44]} 9. cxd5 {[%clk 0:02:54.1]} 9... exd5 {[%clk
0:02:41.9]} 10. Nc3 {[%clk 0:02:54.6]} 10... Be7 {[%clk 0:02:39.6]} 11. Re1
{[%clk 0:02:49.8]} 11... Bg4 {[%clk 0:02:38.6]} 12. Bxc6 {[%clk 0:02:25.7]}
12... bxc6 {[%clk 0:02:39.5]} 13. h3 {[%clk 0:02:26]} 13... Bh5 {[%clk
0:02:37.3]} 14. Qd3 {[%clk 0:02:25.5]} 14... Bg6 {[%clk 0:02:23.6]} 15. Qe2
{[%clk 0:02:18.3]} 15... Ne4 {[%clk 0:02:10.2]} 16. Bxe7 {[%clk 0:02:13.8]}
16... Qxe7 {[%clk 0:02:11.1]} 17. Ne5 {[%clk 0:02:14.1]} 17... Qd6 {[%clk
0:02:08.8]} 18. Nxe4 {[%clk 0:02:09.6]} 18... Bxe4 {[%clk 0:02:04]} 19. Rac1
{[%clk 0:02:09.6]} 19... Rac8 {[%clk 0:02:02.6]} 20. a3 {[%clk 0:02:01.4]} 20...
c5 {[%clk 0:01:59.4]} 21. Qe3 {[%clk 0:01:50.2]} 21... Rfe8 {[%clk 0:01:39.6]}
22. Nd3 {[%clk 0:01:40.3]} 22... c4 {[%clk 0:01:24.1]} 23. Nc5 {[%clk
0:01:38.4]} 23... f6 {[%clk 0:01:22.2]} 24. f3 {[%clk 0:01:36.5]} 24... Bg6
{[%clk 0:01:21]} 25. Qd2 {[%clk 0:01:30.7]} 25... h6 {[%clk 0:01:20]} 26. Re3
{[%clk 0:01:17.4]} 26... Rxe3 {[%clk 0:01:13.6]} 27. Qxe3 {[%clk 0:01:18.3]}
27... Rb8 {[%clk 0:01:13.9]} 28. Qd2 {[%clk 0:00:57.5]} 28... Qb6 {[%clk
0:01:10.2]} 29. b3 {[%clk 0:00:39.7]} 29... cxb3 {[%clk 0:01:08.6]} 30. Nd7
{[%clk 0:00:40.1]} 30... Qb7 {[%clk 0:01:06]} 31. Nxb8 {[%clk 0:00:39.7]} 31...
b2 {[%clk 0:01:05.9]} 32. Nc6 {[%clk 0:00:29.4]} 32... bxc1=Q+ {[%clk
0:00:35.7]} 33. Qxc1 {[%clk 0:00:30.3]} 33... Kh7 {[%clk 0:00:34.2]} 34. Qc5
{[%clk 0:00:29.5]} 34... Be8 {[%clk 0:00:22.2]} 35. Nb4 {[%clk 0:00:28]} 35...
Bf7 {[%clk 0:00:20.6]} 36. Qc6 {[%clk 0:00:23.2]} 36... Qe7 {[%clk 0:00:17.9]}
37. Nxd5 {[%clk 0:00:19.4]} 37... Qxa3 {[%clk 0:00:17.8]} 38. Nc3 {[%clk
0:00:11.1]} 38... Qc1+ {[%clk 0:00:16.6]} 39. Kh2 {[%clk 0:00:11.3]} 39... Qf4+
{[%clk 0:00:16.7]} 40. Kg1 {[%clk 0:00:11]} 40... Qxd4+ {[%clk 0:00:16.9]} 41.
Kh2 {[%clk 0:00:10.7]} 41... a5 {[%clk 0:00:16.5]} 42. Na4 {[%clk 0:00:07.5]}
42... Bb3 {[%clk 0:00:12.2]} 43. Nc5 {[%clk 0:00:07.2]} 43... a4 {[%clk
0:00:09.1]} 44. Nxb3 {[%clk 0:00:02.9]} 44... axb3 {[%clk 0:00:10]} 45. Qb7
{[%clk 0:00:03.1]} 45... b2 {[%clk 0:00:08.2]} 46. Kg3 {[%clk 0:00:03.6]} 46...
Qe5+ {[%clk 0:00:08.2]} 47. Kf2 {[%clk 0:00:03.6]} 47... f5 {[%clk 0:00:08.6]}
48. Qb3 {[%clk 0:00:03.6]} 48... Qd4+ {[%clk 0:00:08.4]} 49. Kg3 {[%clk
0:00:03.3]} 49... Qd2 {[%clk 0:00:08.4]} 50. Qb5 {[%clk 0:00:03.5]} 50... Qe1+
{[%clk 0:00:08]} 51. Kh2 {[%clk 0:00:02.9]} 51... b1=Q {[%clk 0:00:08.9]} 52.
Qxf5+ {[%clk 0:00:03.5]} 52... Qxf5 {[%clk 0:00:08.9]} 0-1